bitfinex/quotes_ETHUSD_20251218
["timestamp","ask_amount","ask_price","bid_price","bid_amount"]
[1766097045147,2.7656,2832.1,2831.8,0.002]
[1766097045885,0.001,2832.7,2832.2,0.2446]
[1766097046081,4.7266,2833.2,2832.4,2.0888]
[1766097046397,2.7656,2833.6,2832.7,0.2409]
[1766097046680,0.563,2833.7,2832.9,2.0888]
[1766097046877,0.001,2833.9,2833.1,2.0888]
[1766097047042,0.601,2834.3,2833.5,0.2409]
[1766097047246,4.7266,2834.2,2833.5,2.0888]
[1766097047868,1.961,2834.0,2833.3,0.563]
[1766097048070,6.34782646,2836.5,2833.6,9.28035684]
[1766097048271,0.564,2836.0,2834.4,0.405504]
[1766097048441,2.7656,2835.3,2834.5,0.564]
[1766097048845,0.564,2835.5,2834.6,2.55318023]
[1766097049045,0.564,2835.7,2834.8,2.0888]
[1766097049257,2.7656,2835.8,2834.8,2.0888]
[1766097049855,0.564,2836.0,2834.8,2.0888]
[1766097049856,2.7656,2835.7,2834.8,2.0888]
[1766097050076,0.001,2835.4,2834.8,2.0888]
[1766097050382,0.001,2835.4,2834.8,2.40051802]
[1766097050947,2.525,2836.0,2834.9,2.0888]
[1766097051260,1.961,2835.7,2834.6,2.0888]
[1766097051567,2.7656,2835.4,2834.7,0.46438023]
[1766097051881,2.7656,2835.2,2834.5,0.3058304]
[1766097052870,1.961,2835.3,2834.5,2.3946304]
[1766097053091,0.564,2835.2,2834.6,0.23946304]
[1766097053452,0.564,2835.2,2834.6,2.32826304]
[1766097053971,2.7656,2836.4,2834.8,0.405504]
[1766097054150,4.7266,2836.1,2834.9,2.0888]
[1766097054344,4.7266,2836.1,2835.1,2.0888]
[1766097055091,4.7266,2836.1,2835.2,2.0888]
[1766097055092,5.2906,2836.1,2835.2,2.0888]
[1766097055401,2.7656,2836.0,2835.2,2.0888]
[1766097055682,2.7656,2835.8,2834.8,2.0888]
[1766097055984,2.7656,2835.8,2834.7,0.405504]
[1766097055985,2.7656,2836.1,2835.1,2.55318023]
[1766097056288,4.7266,2836.1,2835.1,2.55318023]
[1766097057390,4.7276,2836.1,2835.1,2.55318023]
[1766097058190,2.7666,2836.5,2835.4,2.494304]
[1766097058397,0.564,2836.7,2835.5,2.0888]
[1766097058696,4.7266,2836.5,2835.5,2.55318023]
[1766097058905,0.564,2836.7,2835.2,0.46438023]
[1766097058906,2.7656,2836.4,2835.2,0.46438023]
[1766097059049,2.7656,2835.8,2834.7,0.6]
[1766097059393,0.46438023,2836.1,2834.7,0.6]
[1766097059572,2.7656,2835.3,2834.7,0.6]
[1766097059776,4.7266,2835.2,2834.3,2.6528]
[1766097059996,1.961,2835.1,2833.6,1.06036105]
[1766097060278,1.961,2835.2,2834.2,2.0888]
[1766097060480,2.7656,2834.7,2833.8,2.0888]
[1766097060784,0.564,2835.3,2834.5,2.0908]
[1766097060987,4.7266,2835.2,2834.5,0.002]
[1766097061189,2.7656,2835.1,2834.5,0.002]
[1766097061362,4.7266,2835.1,2834.5,0.002]
[1766097062390,0.564,2835.3,2834.5,0.002]
[1766097062683,2.9472,2835.1,2834.5,0.002]
[1766097063265,2.0311,2835.2,2834.5,0.002]
[1766097063463,4.9783,2835.2,2834.5,0.002]
[1766097063664,2.9472,2835.1,2834.5,0.002]
[1766097063958,4.9783,2834.8,2834.5,0.002]
[1766097064606,4.9783,2834.8,2833.3,2.0125]
[1766097064607,2.9472,2834.5,2833.3,2.0125]
[1766097064885,2.9472,2834.1,2833.3,2.5765]
[1766097065048,2.9472,2834.0,2833.3,2.0125]
[1766097065254,2.9472,2833.8,2833.3,0.002]
[1766097065574,2.9472,2834.1,2833.4,2.0105]
[1766097065891,2.9472,2834.7,2833.4,0.86988423]
[1766097066190,2.0311,2834.6,2833.7,2.0105]
[1766097066398,4.9783,2834.6,2833.7,2.0105]
[1766097066604,5.5423,2834.9,2833.8,0.564]
[1766097066778,5.5423,2834.9,2833.9,2.0105]
[1766097066981,2.5951,2834.9,2833.9,2.0105]
[1766097067290,2.9472,2834.7,2833.9,2.26795]
[1766097068977,2.9472,2834.7,2833.9,2.0105]
[1766097069184,2.0311,2834.6,2833.8,0.564]
[1766097069493,2.9472,2834.6,2833.8,2.5745]
[1766097070301,4.9783,2834.8,2833.9,2.47488023]
[1766097070461,2.9472,2834.8,2833.9,2.47488023]
[1766097070661,1.02838023,2835.1,2833.9,2.47488023]
[1766097070866,4.9783,2835.0,2833.9,2.47488023]
[1766097071093,4.55559604,2835.1,2833.9,0.46438023]
[1766097071591,2.9472,2835.0,2833.6,2.0105]
[1766097071799,8.08281185,2835.1,2833.6,2.0105]
[1766097071800,2.9472,2834.4,2833.6,0.564]
[1766097071969,4.9783,2834.3,2833.6,0.564]
[1766097072173,4.9783,2834.3,2833.6,1.02838023]
[1766097072494,7.51881185,2835.1,2834.0,2.0105]
[1766097072495,0.46438023,2835.1,2834.0,2.0105]
[1766097072695,2.9874,2835.5,2834.3,2.0816]
[1766097072883,2.9874,2835.4,2834.3,2.0816]
[1766097073089,5.1406,2835.4,2834.3,2.0816]
[1766097073296,2.9874,2835.4,2834.2,0.86988423]
[1766097073470,2.9874,2835.4,2834.3,2.487104]
[1766097073672,2.9874,2835.4,2834.6,2.0816]
[1766097073906,2.9874,2835.4,2834.6,2.6466]
[1766097074970,2.9874,2835.4,2834.7,2.0816]
[1766097076186,0.001,2835.7,2834.9,2.0816]
[1766097076497,0.001,2835.7,2835.1,2.0816]
[1766097076795,0.001,2835.7,2835.2,0.26466]
[1766097078001,2.9874,2835.6,2835.0,0.565]
[1766097078184,0.001,2835.7,2834.5,2.0816]
[1766097078185,5.1406,2835.5,2834.5,2.0816]
[1766097078501,0.001,2835.7,2834.7,2.0816]
[1766097078886,2.9884,2835.7,2834.7,2.0816]
[1766097079203,2.9884,2835.7,2834.8,2.3868104]
[1766097080289,2.1542,2835.7,2834.8,2.3868104]
[1766097080491,2.9874,2835.6,2834.8,2.3868104]
[1766097082706,2.9884,2835.6,2834.8,2.3868104]
[1766097083121,2.9874,2835.5,2834.8,2.3868104]
[1766097083414,2.9874,2835.5,2834.9,1.02938023]
[1766097085400,5.1406,2835.5,2834.9,1.02938023]
[1766097085781,5.1406,2835.5,2834.9,0.46438023]
[1766097085982,5.1406,2835.5,2834.9,1.02938023]
[1766097086312,2.9874,2834.8,2833.9,2.0816]
[1766097086505,5.1406,2834.8,2834.0,2.6466]
[1766097086811,2.9874,2834.5,2833.6,2.0836]
[1766097087011,2.9874,2834.5,2833.9,0.565]
[1766097087315,2.9874,2834.5,2833.7,2.0816]
[1766097087610,5.1406,2834.5,2834.0,0.565]
[1766097088615,2.9874,2834.4,2834.0,0.565]
[1766097088816,2.1532,2834.4,2834.0,0.565]
[1766097089019,2.9874,2834.3,2834.0,0.565]
[1766097090319,0.565,2835.0,2834.0,0.565]
[1766097090918,2.9874,2835.0,2834.1,2.0816]
[1766097091125,0.001,2834.6,2834.1,2.34626]
[1766097091698,0.001,2835.6,2834.4,0.405504]
[1766097092018,2.1532,2835.4,2834.5,0.565]
[1766097092186,2.9874,2835.3,2834.5,1.02938023]
[1766097092512,2.9874,2835.3,2834.6,0.46438023]
[1766097092724,2.9874,2835.3,2834.6,0.86246668]
[1766097093288,5.1406,2835.3,2834.6,0.46438023]
[1766097093487,2.9874,2835.2,2834.6,0.46438023]
[1766097094139,2.9874,2835.0,2834.6,0.565]
[1766097096219,0.565,2835.5,2834.6,0.565]
[1766097096220,2.1532,2835.4,2834.6,0.565]
[1766097096414,5.1406,2835.2,2834.6,0.565]
[1766097097521,5.1406,2835.1,2834.6,0.565]
[1766097098133,2.9874,2835.1,2834.6,0.565]
[1766097098339,2.9874,2835.3,2834.6,0.565]
[1766097098628,5.1406,2835.3,2834.6,0.565]
[1766097099224,5.1406,2835.3,2834.5,0.002]
[1766097099417,5.1406,2835.3,2834.5,0.566]
[1766097099616,5.1406,2835.3,2834.5,2.54798023]
[1766097099824,5.1406,2835.3,2834.6,3.10998023]
[1766097100532,0.001,2835.6,2834.6,3.10998023]
[1766097100533,5.1406,2835.2,2834.6,0.564]
[1766097100827,5.1406,2835.1,2834.5,0.002]
[1766097101045,5.1406,2835.1,2834.6,0.564]
[1766097102828,2.7676,2835.0,2834.6,0.564]
[1766097103034,2.7676,2834.9,2834.6,0.564]
[1766097104028,2.7676,2834.9,2834.5,0.566]
[1766097104438,2.7676,2834.9,2834.2,0.46438023]
[1766097104618,4.7131,2834.5,2833.9,0.564]
[1766097105411,0.564,2835.2,2833.9,0.564]
[1766097105827,4.7131,2835.1,2833.9,0.564]
[1766097106134,2.7676,2834.9,2833.9,2.5546]
[1766097106436,2.7676,2835.1,2833.9,0.564]
[1766097106638,4.09113884,2835.2,2833.9,0.564]
[1766097106938,2.7676,2834.9,2833.9,0.564]
[1766097107105,2.7676,2834.7,2833.9,0.564]
[1766097107309,2.7676,2834.5,2833.9,0.564]
[1766097107605,4.7131,2834.5,2833.9,0.564]
[1766097108128,1.9455,2834.3,2833.6,2.5566]
[1766097108318,2.7676,2834.4,2833.6,2.5566]
[1766097108319,2.7676,2834.4,2833.7,1.9906]
[1766097108515,0.46438023,2834.6,2833.6,0.002]
[1766097108719,0.46438023,2834.6,2833.3,0.002]
[1766097108720,2.7676,2834.1,2833.3,0.002]
[1766097108928,4.7131,2833.8,2833.3,0.002]
[1766097110021,1.9455,2833.6,2833.3,0.002]
[1766097110233,0.564,2833.9,2832.7,1.9906]
[1766097110448,2.7676,2833.6,2832.7,1.9906]
[1766097110607,4.7131,2833.4,2832.8,0.19906]
[1766097111030,1.9455,2833.7,2832.7,0.46438023]
[1766097111219,1.9455,2833.5,2832.8,1.9906]
[1766097111428,2.7676,2833.8,2832.8,1.9906]
[1766097112738,4.7131,2833.8,2832.8,1.9906]
[1766097113037,4.7131,2833.7,2832.8,1.9906]
[1766097113244,4.7131,2833.7,2832.9,2.18966]
[1766097113614,1.9455,2833.7,2832.9,2.18966]
[1766097113825,2.7676,2833.5,2832.9,2.18966]
[1766097114034,1.9455,2833.2,2832.8,0.002]
[1766097114233,9.41811906,2833.9,2832.5,0.002]
[1766097114234,2.7676,2832.9,2832.5,0.002]
[1766097115828,4.7131,2832.9,2832.5,0.002]
[1766097116739,1.9455,2832.9,2832.5,0.002]
[1766097116913,4.7131,2832.9,2832.5,0.002]
[1766097117110,1.9455,2832.9,2832.5,0.002]
[1766097117333,2.7676,2832.5,2832.2,0.002]
[1766097117618,4.7131,2832.5,2832.2,0.002]
[1766097117811,1.9455,2832.5,2832.2,0.002]
[1766097118016,4.7131,2832.3,2831.8,0.002]
[1766097118212,1.9455,2832.3,2831.8,0.002]
[1766097118411,0.564,2832.9,2831.8,0.002]
[1766097118633,3.52964051,2833.2,2831.8,0.002]
[1766097118846,2.7676,2832.7,2831.8,2.45698023]
[1766097119049,1.9455,2832.2,2831.8,0.002]
[1766097119430,1.9455,2832.2,2831.4,1.9926]
[1766097119431,4.7131,2831.9,2831.4,0.002]
[1766097119629,4.7131,2831.8,2831.4,0.002]
[1766097120060,4.7131,2831.7,2831.4,0.002]
[1766097120361,1.9455,2832.1,2830.9,1.03038023]
[1766097120570,1.9455,2831.5,2830.9,0.002]
[1766097120858,1.9455,2831.3,2830.9,0.002]
[1766097121038,2.7676,2831.2,2830.9,0.002]
[1766097122547,1.02838023,2831.8,2830.9,0.002]
[1766097122746,2.7948,2831.4,2830.9,0.002]
[1766097123162,2.7948,2831.7,2830.9,2.0893]
[1766097123367,2.7948,2831.3,2830.9,0.002]
[1766097123541,1.02838023,2831.8,2830.9,0.002]
[1766097123738,2.7948,2831.7,2830.9,0.002]
[1766097124064,2.7948,2831.1,2830.8,0.002]
[1766097124267,2.7948,2830.9,2830.6,0.002]
[1766097124566,0.564,2831.4,2830.6,0.002]
[1766097124766,4.7502,2831.3,2830.6,0.002]
[1766097125270,4.7502,2831.2,2830.6,0.002]
[1766097125475,2.7948,2831.3,2830.6,0.002]
[1766097125673,4.7502,2831.1,2830.6,0.002]
[1766097125972,4.7502,2831.3,2830.6,0.002]
[1766097126176,2.7948,2831.3,2830.6,0.002]
[1766097126380,0.46438023,2832.3,2830.6,2.0893]
[1766097126548,4.7502,2831.6,2830.6,2.55368023]
[1766097126744,1.9554,2831.6,2830.8,2.0873]
[1766097126950,1.02838023,2831.8,2830.8,2.0873]
[1766097127159,2.7948,2831.7,2830.8,2.0873]
[1766097127747,1.9554,2831.8,2830.8,2.0873]
[1766097127977,4.7502,2831.8,2830.6,0.407504]
[1766097128173,1.02838023,2831.9,2830.6,2.95918423]
[1766097128566,1.02838023,2831.9,2830.6,0.87188423]
[1766097128874,1.9554,2831.5,2830.6,0.87188423]
[1766097129172,2.7948,2831.4,2830.6,0.87188423]
[1766097129378,4.55960199,2831.9,2830.7,2.55168023]
[1766097129589,1.9554,2831.4,2830.6,0.002]
[1766097129772,4.7502,2831.3,2830.6,0.002]
[1766097130146,1.9554,2831.3,2830.6,0.002]
[1766097130352,1.9554,2831.0,2830.6,0.002]
[1766097130689,0.564,2831.4,2830.6,0.002]
[1766097130848,2.7948,2831.0,2830.6,0.002]
[1766097131178,0.564,2831.4,2830.6,0.002]
[1766097131381,1.9554,2831.0,2830.6,0.002]
[1766097131592,1.9554,2830.8,2830.6,0.002]
[1766097132099,4.7502,2830.8,2830.5,0.002]
[1766097133557,1.9925,2830.7,2829.9,1.9244]
[1766097133884,4.8034,2830.6,2829.9,1.9244]
[1766097134887,3.3749,2830.9,2830.1,1.9224]
[1766097135187,3.3749,2830.9,2830.2,0.19224]
[1766097135389,3.3749,2830.9,2830.2,1.9224]
[1766097135888,2.8109,2830.9,2830.2,1.9224]
[1766097137789,2.8109,2830.8,2830.1,0.405504]
[1766097138094,4.8034,2830.8,2830.1,0.405504]
[1766097138395,4.8034,2830.8,2829.9,0.407504]
[1766097138566,4.8034,2830.8,2830.1,2.327904]
[1766097138761,4.8034,2830.8,2830.1,2.5608944]
[1766097140371,4.8034,2830.8,2830.2,1.9224]
[1766097140682,4.8034,2830.8,2829.9,0.002]
[1766097140683,1.9925,2830.8,2829.9,0.002]
[1766097140889,2.8109,2830.5,2829.9,0.002]
[1766097141202,2.8109,2830.5,2829.9,0.25124]
[1766097143594,1.9925,2830.5,2829.9,0.25124]
[1766097143800,4.8034,2830.4,2829.9,0.25124]
[1766097145074,2.8109,2830.3,2829.9,0.002]
[1766097145808,1.9925,2830.4,2829.9,0.002]
[1766097146686,4.8034,2830.4,2829.9,0.002]
[1766097150927,1.9925,2830.4,2829.9,0.002]
[1766097151087,0.563,2830.8,2829.9,0.002]
[1766097151088,2.8109,2830.2,2829.9,0.002]
[1766097151292,4.8034,2830.2,2829.9,0.002]
[1766097151830,2.8069,2830.0,2829.8,0.002]
[1766097153718,3.53226346,2831.1,2829.8,0.002]
[1766097153934,1.02738023,2831.2,2829.9,1.9224]
[1766097154138,0.46438023,2831.0,2829.9,1.9224]
[1766097154425,2.8109,2830.9,2830.1,1.9224]
[1766097155819,2.8109,2830.7,2830.1,1.9224]
[1766097156023,2.8109,2830.6,2830.1,1.9224]
[1766097156412,5.26778023,2831.2,2830.1,1.9224]
[1766097156614,0.563,2831.1,2830.1,1.9224]
[1766097156810,0.001,2830.5,2830.1,1.9224]
[1766097157026,0.001,2830.5,2830.2,0.217114]
[1766097157610,0.001,2830.5,2830.0,0.24874]
[1766097160318,8.25217441,2832.5,2830.1,1.9224]
[1766097160494,8.25217441,2832.5,2830.4,1.9224]
[1766097160495,2.8109,2831.4,2830.4,1.9224]
[1766097160697,2.8109,2831.4,2830.6,1.9224]
[1766097160900,0.563,2831.8,2830.6,1.9224]
[1766097160901,2.8109,2831.6,2830.8,1.9224]
[1766097162400,2.8109,2831.4,2830.8,2.327904]
[1766097163794,2.8317,2831.7,2830.8,2.327904]
[1766097164135,2.8307,2831.6,2831.0,1.8795]
[1766097164336,2.8307,2831.6,2831.1,0.18795]
[1766097164700,2.8307,2831.6,2830.9,1.8795]
[1766097165325,2.8317,2831.7,2830.9,1.8795]
[1766097166304,0.001,2831.7,2831.1,1.8795]
[1766097166528,2.8317,2831.7,2831.1,2.4425]
[1766097166832,2.8317,2831.7,2831.2,0.24425]
[1766097168132,3.3937,2832.2,2831.2,1.8795]
[1766097168317,5.3333,2832.2,2831.2,2.34388023]
[1766097168523,2.8307,2832.1,2831.2,2.34388023]
[1766097168913,1.9396,2832.0,2831.2,1.8795]
[1766097169117,2.8307,2831.9,2831.2,2.57569202]
[1766097169327,2.8307,2831.9,2831.3,1.8795]
[1766097170137,3.99463054,2832.7,2831.3,1.8795]
[1766097170138,2.8317,2832.8,2831.6,0.405504]
[1766097170295,2.8307,2833.4,2832.1,1.8795]
[1766097170496,4.7703,2833.3,2832.3,0.46438023]
[1766097170725,0.563,2833.4,2832.3,0.46438023]
[1766097170915,0.563,2833.4,2832.2,0.563]
[1766097171227,0.001,2833.5,2832.3,1.8795]
[1766097171442,1.9396,2833.9,2832.9,1.8795]
[1766097171650,0.001,2834.6,2832.9,1.8795]
[1766097171651,2.8307,2833.7,2833.0,1.98654606]
[1766097171936,0.001,2834.6,2833.1,1.8795]
[1766097172148,1.9396,2834.4,2833.1,0.46438023]
[1766097172355,0.001,2834.0,2833.3,1.8795]
[1766097172555,2.8317,2834.0,2833.3,1.8795]
[1766097174442,2.8317,2834.0,2833.4,0.564]
[1766097174814,2.8317,2834.0,2833.3,1.8795]
[1766097175184,2.8317,2834.0,2833.3,2.4435]
[1766097175843,1.9406,2834.0,2833.3,2.4435]
[1766097176021,2.8307,2833.9,2833.3,2.4435]
[1766097178533,2.8307,2833.7,2832.9,1.8795]
[1766097178734,2.8307,2833.7,2832.9,2.23248997]
[1766097178909,2.8307,2833.7,2833.0,1.8795]
[1766097180511,1.9396,2833.9,2833.0,1.8795]
[1766097180818,4.7703,2833.9,2833.0,1.8795]
[1766097181033,4.7703,2833.9,2833.2,1.8795]
[1766097181234,4.7703,2833.9,2833.2,2.4425]
[1766097181431,0.001,2834.0,2833.3,1.8795]
[1766097181636,2.8317,2834.0,2833.3,1.8795]
[1766097182031,2.6435,2833.9,2833.3,1.8795]
[1766097182554,0.001,2834.0,2833.2,0.563]
[1766097182738,2.6435,2833.8,2833.2,0.563]
[1766097183622,4.5417,2833.8,2833.2,0.563]
[1766097183818,2.6435,2833.7,2833.2,0.563]
[1766097185251,1.8982,2833.7,2833.1,1.8636]
[1766097185440,2.6435,2833.6,2833.1,2.4266]
[1766097186043,2.6435,2833.4,2832.9,0.565]
[1766097186853,2.6435,2833.4,2832.9,1.02938023]
[1766097187939,2.6435,2833.4,2832.9,0.46638023]
[1766097191057,2.6435,2833.2,2832.9,0.002]
[1766097191252,2.6435,2833.0,2832.2,0.563]
[1766097191552,2.6435,2832.9,2831.8,1.8636]
[1766097191745,2.6435,2832.9,2832.0,1.8636]
[1766097191932,2.6435,2832.7,2832.0,1.8636]
[1766097192136,2.6435,2832.7,2832.1,0.405504]
[1766097192338,2.6435,2832.7,2832.1,2.269104]
[1766097192670,2.6435,2832.7,2832.1,1.8636]
[1766097192671,2.65,2832.6,2832.1,1.8636]
[1766097192836,2.65,2832.6,2832.0,0.563]
[1766097193150,2.65,2832.6,2832.0,2.4428]
[1766097193340,2.65,2832.6,2832.0,1.8798]
[1766097193548,2.65,2832.4,2831.7,1.8818]
[1766097193846,2.65,2832.3,2831.7,1.8818]
[1766097196359,2.65,2832.9,2831.7,1.8818]
[1766097196563,3.213,2832.9,2831.7,2.34618023]
[1766097196767,2.65,2832.8,2831.9,1.8798]
[1766097200666,2.65,2833.3,2832.4,6.49506258]
[1766097200838,2.65,2833.3,2832.5,1.8798]
[1766097200839,2.65,2833.2,2832.5,1.8798]
[1766097201035,4.6433,2833.2,2832.5,1.8798]
[1766097201238,2.65,2833.1,2832.5,1.8798]
[1766097202031,2.65,2833.4,2832.7,1.8798]
[1766097202966,2.65,2833.3,2832.7,1.8798]
[1766097203171,2.65,2833.2,2832.7,1.8798]
[1766097203846,1.9933,2832.9,2832.1,1.8798]
[1766097204159,2.65,2832.8,2832.2,1.02738023]
[1766097204331,2.65,2832.8,2832.3,1.8798]
[1766097206177,2.65,2832.8,2832.3,2.4428]
[1766097207027,2.65,2833.0,2832.3,2.4428]
[1766097207232,2.65,2833.0,2832.4,1.8798]
[1766097209160,2.65,2832.9,2832.4,1.8798]
[1766097215651,2.65,2832.9,2832.3,0.002]
[1766097215652,4.6433,2832.9,2832.3,0.002]
[1766097215975,4.6433,2832.8,2832.3,0.002]
[1766097216181,2.65,2832.8,2832.3,0.002]
[1766097216379,2.65,2832.8,2832.3,1.8818]
[1766097216878,1.9933,2833.1,2832.3,1.8818]
[1766097216879,2.65,2833.2,2832.3,1.8818]
[1766097217182,2.65,2833.0,2832.3,1.8818]
[1766097218052,4.6433,2833.0,2832.3,1.8818]
[1766097219582,2.65,2832.9,2832.3,1.8818]
[1766097221085,2.65,2832.7,2832.3,0.002]
[1766097223995,2.5674,2832.3,2831.9,0.002]
[1766097224356,1.9204,2832.8,2832.1,1.9029]
[1766097224679,0.564,2833.1,2832.1,1.9029]
[1766097224680,4.4878,2832.6,2832.1,1.9029]
[1766097225466,2.5674,2832.5,2832.1,1.9029]
[1766097226277,2.5674,2832.5,2831.9,2.4679]
[1766097227370,4.4878,2832.5,2831.9,2.4679]
[1766097227967,1.9204,2832.5,2831.9,2.4679]
[1766097228300,2.5674,2832.4,2831.9,2.4679]
[1766097228495,2.5674,2832.3,2831.9,0.002]
[1766097228672,2.5674,2832.2,2831.9,0.002]
[1766097229199,0.563,2832.7,2832.0,1.9029]
[1766097229380,0.001,2833.1,2832.5,1.9029]
[1766097229769,0.001,2833.1,2832.5,0.563]
[1766097229970,0.001,2833.1,2832.6,1.9029]
[1766097233404,2.5684,2833.5,2832.8,1.9029]
[1766097233583,2.5684,2833.5,2832.9,2.36728023]
[1766097234495,0.001,2833.5,2832.9,2.36728023]
[1766097235304,2.5674,2833.7,2833.1,1.9029]
[1766097235508,4.4878,2833.9,2833.1,1.9029]
[1766097236012,2.5674,2833.8,2833.1,1.9029]
[1766097237182,2.5674,2833.7,2833.1,1.9029]
[1766097237386,2.5674,2833.6,2833.1,1.9029]
[1766097237811,1.9204,2833.5,2832.1,3.9953127]
[1766097238010,1.9204,2833.5,2832.6,1.9029]
[1766097238011,1.9204,2833.3,2832.6,1.9029]
[1766097238213,2.5674,2833.2,2832.6,1.9029]
[1766097239519,0.563,2833.5,2832.6,1.9029]
[1766097239821,2.5674,2833.4,2832.6,1.9029]
[1766097240006,0.001,2833.2,2832.7,1.9029]
[1766097241119,4.4878,2833.0,2832.3,2.30463127]
[1766097241318,4.4878,2833.0,2832.5,1.9029]
[1766097241494,2.5674,2833.0,2832.5,2.36728023]
[1766097241819,0.001,2833.2,2832.5,1.9029]
[1766097242022,2.7553,2832.9,2832.5,1.9029]
[1766097242320,2.7553,2832.9,2832.4,0.563]
[1766097242496,4.5944,2833.1,2832.5,1.8482]
[1766097245122,2.7553,2833.0,2832.5,1.8482]
[1766097246799,2.7553,2833.0,2832.4,0.563]
[1766097247002,2.7553,2833.0,2832.4,2.4112]
[1766097249233,0.001,2833.1,2832.5,1.8482]
[1766097249414,4.5954,2833.1,2832.5,1.8482]
[1766097250754,4.5944,2832.9,2832.3,2.4132]
[1766097250951,4.5944,2832.9,2832.4,1.8482]
[1766097251255,2.7553,2832.9,2832.4,1.8482]
[1766097253713,1.8401,2833.1,2832.4,1.8482]
[1766097253714,2.6889,2833.1,2832.4,1.8482]
[1766097254223,2.6879,2833.0,2832.5,0.002]
[1766097255517,2.6879,2832.9,2832.5,0.002]
[1766097256241,0.001,2833.1,2832.5,2.03312]
[1766097258945,0.001,2833.1,2832.5,0.24352]
[1766097259148,2.6879,2832.8,2832.5,0.002]
[1766097259448,1.897,2832.9,2832.5,0.002]
[1766097259656,2.6879,2833.0,2832.5,0.002]
[1766097259822,2.6879,2832.9,2832.5,0.002]
[1766097263124,0.001,2833.1,2832.6,1.7896]
[1766097263324,0.001,2833.5,2832.8,1.7896]
[1766097264858,2.6889,2833.5,2832.8,1.7896]
[1766097270091,2.6879,2833.4,2832.7,0.563]
[1766097270291,2.6879,2833.3,2832.7,0.563]
[1766097270585,4.5849,2833.3,2832.7,2.81698023]
[1766097270795,2.6879,2833.0,2832.5,0.23766]
[1766097270966,2.6879,2833.0,2832.5,2.02726]
[1766097271307,2.6879,2832.8,2832.5,0.002]
[1766097272457,0.563,2833.5,2832.5,1.7916]
[1766097272458,2.6879,2833.4,2832.5,1.7916]
[1766097272660,4.5849,2833.2,2832.5,1.7916]
[1766097272899,4.5849,2833.4,2832.5,1.7916]
[1766097273105,2.6879,2833.4,2832.5,1.7916]
[1766097273289,0.563,2833.5,2832.5,1.7916]
[1766097273290,1.897,2833.1,2832.5,1.7916]
[1766097273501,2.6879,2833.0,2832.5,1.7916]
[1766097274784,4.5849,2833.0,2832.5,1.7916]
[1766097275006,2.6879,2833.3,2832.5,1.7916]
[1766097275177,2.6879,2833.1,2832.5,1.7916]
[1766097275378,2.6879,2833.1,2832.5,0.70194023]
[1766097275577,2.6879,2833.1,2832.6,1.7896]
[1766097275803,2.6879,2833.3,2832.6,1.7896]
[1766097276181,4.5849,2833.3,2832.6,1.7896]
[1766097277091,4.5849,2833.2,2832.6,1.7896]
[1766097278124,0.001,2834.0,2833.3,0.405504]
[1766097278280,0.001,2834.0,2833.1,6.49370518]
[1766097278281,2.6889,2834.0,2833.4,2.3516]
[1766097278787,2.6889,2834.0,2833.4,1.7896]
[1766097278986,2.6889,2834.0,2832.8,0.46438023]
[1766097279201,2.6889,2834.0,2833.0,2.25398023]
[1766097279515,2.6889,2834.0,2832.9,0.562]
[1766097280218,1.897,2833.7,2832.8,1.7896]
[1766097280426,0.001,2834.0,2832.8,1.7896]
[1766097280427,2.6879,2833.4,2832.9,0.562]
[1766097280887,2.6879,2833.4,2832.8,1.7896]
[1766097281210,2.6879,2833.4,2832.9,0.562]
[1766097283809,2.6879,2833.4,2832.8,1.7896]
[1766097284305,2.6879,2833.4,2832.9,0.562]
[1766097286090,2.6879,2833.4,2832.9,2.68216]
[1766097287612,2.6879,2833.4,2832.9,0.79716]
[1766097287815,2.6879,2833.4,2833.0,1.885]
[1766097290440,2.6879,2833.4,2832.9,0.562]
[1766097291736,2.6879,2833.4,2832.9,2.447]
[1766097292735,2.6879,2833.4,2832.9,1.885]
[1766097292940,2.6879,2833.4,2833.0,0.562]
[1766097296246,4.4724,2833.4,2833.0,0.562]
[1766097296425,2.7109,2833.3,2833.0,0.562]
[1766097297109,1.7845,2833.2,2832.5,1.887]
[1766097297313,0.41298538,2833.3,2832.5,1.887]
[1766097297314,2.7109,2833.0,2832.6,0.562]
[1766097298540,2.7109,2833.0,2832.5,0.002]
[1766097298739,2.7109,2832.6,2832.3,0.002]
[1766097303886,2.3873,2832.5,2832.3,0.002]
[1766097314000,2.3883,2832.5,2832.3,0.002]
[1766097316794,2.3883,2832.5,2832.4,1.7779]
[1766097316795,0.001,2832.5,2832.4,1.7779]
[1766097317098,0.001,2832.5,2832.3,0.002]
[1766097318109,2.5169,2832.4,2832.3,0.002]
[1766097319585,0.001,2832.5,2832.3,0.002]
[1766097319787,2.5179,2832.5,2832.3,0.002]
[1766097321692,0.001,2832.5,2832.3,1.7799]
[1766097322418,0.001,2832.5,2832.3,0.002]
[1766097324092,0.001,2832.5,2832.3,1.7799]
[1766097324424,0.001,2832.5,2832.3,2.84113502]